bitfinex-derivatives/quotes_ETHF0:USTF0_20250421
["timestamp","ask_amount","ask_price","bid_price","bid_amount"]
[1745259223044,9.6476,1578.6,1578.5,1.26687]
[1745259223342,10.91439,1578.6,1578.5,1.26687]
[1745259224846,1.26687,1578.5,1578.4,8.23531596]
[1745259225143,9.11037,1578.5,1578.4,6.29446596]
[1745259226839,9.11037,1578.5,1578.4,1.27646596]
[1745259227139,6.146,1578.5,1578.4,1.27646596]
[1745259228148,7.41287,1578.5,1578.4,1.27646596]
[1745259228340,9.19177,1578.5,1578.4,1.27646596]
[1745259228740,9.19177,1578.5,1578.4,2.92906596]
[1745259230145,9.19177,1578.5,1578.4,0.00951596]
[1745259230543,17.39957,1578.5,1578.4,0.00951596]
[1745259234552,1.26719,1578.1,1578.0,4.47506]
[1745259234747,1.26719,1578.1,1578.0,6.22509972]
[1745259235143,7.41319,1578.1,1578.0,6.22509972]
[1745259235343,9.24139,1578.1,1578.0,6.22509972]
[1745259238945,3.16839,1577.9,1577.6,1.78220286]
[1745259239144,1.26751,1577.7,1577.6,1.7561]
[1745259239544,2.99111,1577.7,1577.6,1.7561]
[1745259240049,2.99111,1577.7,1577.6,3.02369]
[1745259240244,9.13711,1577.7,1577.6,1.7561]
[1745259240545,1.26783,1577.3,1577.2,5.016]
[1745259240740,19.20742,1577.7,1577.2,6.7721]
[1745259240741,4.4756,1577.4,1577.2,6.7721]
[1745259240950,4.4756,1577.4,1577.3,3.02393]
[1745259241150,6.146,1577.4,1577.3,3.02393]
[1745259241343,6.146,1577.4,1577.3,4.56903]
[1745259242345,0.00951596,1577.5,1577.4,1.26775]
[1745259242544,1.27718596,1577.5,1577.4,2.96655]
[1745259242745,1.27718596,1577.5,1577.4,1.6988]
[1745259242944,1.27718596,1577.5,1577.4,2.96655]
[1745259243353,1.27718596,1577.5,1577.4,1.6988]
[1745259243746,3.01678596,1577.5,1577.4,1.6988]
[1745259244454,1.27718596,1577.5,1577.4,2.96655]
[1745259244656,1.27718596,1577.5,1577.4,1.6988]
[1745259245164,1.27718596,1577.5,1577.4,2.96655]
[1745259245453,0.00951596,1577.5,1577.4,11.17435]
[1745259246052,0.00951596,1577.5,1577.4,6.17435]
[1745259246257,1.27718596,1577.5,1577.4,2.96655]
[1745259247452,1.27718596,1577.5,1577.4,1.6988]
[1745259247958,0.00951596,1577.5,1577.4,2.96655]
[1745259248151,1.27718596,1577.5,1577.4,2.96655]
[1745259248847,3.21731596,1577.5,1577.4,2.96655]
[1745259249857,0.00951596,1577.5,1577.4,2.96655]
[1745259251961,1.27718596,1577.5,1577.4,2.96655]
[1745259252162,3.07308596,1577.5,1577.4,2.96655]
[1745259252359,1.80541596,1577.5,1577.4,2.96655]
[1745259252561,0.00951596,1577.5,1577.4,2.96655]
[1745259257564,1.27718596,1577.5,1577.4,2.96655]
[1745259259163,0.00951596,1577.5,1577.4,2.96655]
[1745259259462,0.00951596,1577.5,1577.2,5.01951596]
[1745259259463,1.26783,1577.3,1577.2,5.01951596]
[1745259259663,4.47563,1577.3,1577.2,6.28738596]
[1745259259860,4.47563,1577.3,1577.2,7.95618596]
[1745259260254,12.36723,1577.3,1577.2,7.95618596]
[1745259261464,12.36723,1577.3,1577.2,6.68831596]
[1745259261767,12.36723,1577.3,1577.2,5.01951596]
[1745259262359,12.36723,1577.3,1577.2,6.28742596]
[1745259262561,12.36723,1577.3,1577.2,3.00352596]
[1745259265161,1.26807,1577.1,1577.0,1.26802]
[1745259265360,4.47587,1577.1,1577.0,1.26802]
[1745259265560,4.47587,1577.1,1577.0,2.92872]
[1745259266967,6.03717,1577.1,1577.0,2.92872]
[1745259267169,3.2078,1577.1,1577.0,2.92872]
[1745259268270,4.47579,1577.1,1577.0,2.92872]
[1745259269870,3.2078,1577.1,1577.0,2.92872]
[1745259270168,1.6222,1577.4,1577.3,1.26783]
[1745259270363,1.8307,1577.6,1577.5,1.26767]
[1745259270566,4.39575,1577.7,1577.6,1.26759]
[1745259270765,1.26759,1577.6,1577.5,1.26761]
[1745259270969,1.26759,1577.6,1577.5,2.92801]
[1745259271163,7.41359,1577.6,1577.5,2.92801]
[1745259271872,6.146,1577.6,1577.5,2.92801]
[1745259272068,7.41359,1577.6,1577.5,2.92801]
[1745259272268,6.146,1577.6,1577.5,2.92801]
[1745259272470,7.41359,1577.6,1577.5,2.92801]
[1745259272669,7.41359,1577.6,1577.5,1.6604]
[1745259272864,9.06789,1577.6,1577.5,1.6604]
[1745259273468,9.06789,1577.6,1577.5,2.92807]
[1745259274265,2.92189,1577.6,1577.5,2.92807]
[1745259276373,9.06789,1577.6,1577.5,2.92807]
[1745259276876,6.146,1577.6,1577.5,2.92807]
[1745259277171,1.2677,1577.5,1577.3,3.2078]
[1745259277378,3.05762,1577.5,1577.4,1.26775]
[1745259277673,1.7899,1577.5,1577.4,1.26775]
[1745259277866,1.7899,1577.5,1577.4,3.06035]
[1745259278061,4.47547,1577.6,1577.5,1.26767]
[1745259278266,6.26537,1577.6,1577.5,1.26767]
[1745259278873,1.7899,1577.6,1577.5,1.26767]
[1745259279073,3.13771596,1577.7,1577.6,1.26759]
[1745259279275,4.40522596,1577.7,1577.6,1.26759]
[1745259279467,1.26783,1577.3,1577.2,6.26981]
[1745259279667,8.05439,1577.6,1577.3,1.26779]
[1745259279872,2.94534,1577.5,1577.4,1.26771]
[1745259280068,1.26775,1577.4,1577.3,2.98286]
[1745259280274,4.62125,1577.4,1577.3,2.98286]
[1745259280766,4.62125,1577.4,1577.3,1.7151]
[1745259280968,4.62125,1577.4,1577.3,2.98293]
[1745259281164,10.76725,1577.4,1577.3,2.98293]
[1745259281473,10.76725,1577.4,1577.3,1.7151]
[1745259281675,1.26783,1577.3,1577.2,6.26989]
[1745259281874,4.55623,1577.3,1577.2,5.002]
[1745259282076,4.55623,1577.3,1577.1,3.02942]
[1745259282077,1.26791,1577.2,1577.1,3.02942]
[1745259282377,2.97401,1577.2,1577.1,3.02942]
[1745259282574,1.7061,1577.2,1577.1,3.02942]
[1745259283169,7.8521,1577.2,1577.1,3.02942]
[1745259284072,9.12001,1577.2,1577.1,3.02942]
[1745259284279,7.8521,1577.2,1577.1,3.02942]
[1745259285277,9.12001,1577.2,1577.1,3.02942]
[1745259285675,7.8521,1577.2,1577.1,3.02942]
[1745259286280,6.146,1577.2,1577.1,3.02942]
[1745259286680,7.41391,1577.2,1577.1,3.02942]
[1745259286982,6.146,1577.2,1577.1,3.02942]
[1745259287972,6.11719644,1577.2,1577.1,8.02942]
[1745259288181,7.25162,1577.6,1577.5,1.26767]
[1745259288182,5.984,1577.6,1577.5,1.26767]
[1745259288567,7.25159,1577.6,1577.5,2.94497]
[1745259288774,7.25159,1577.6,1577.5,43.74497]
[1745259289081,12.13,1577.6,1577.5,43.74497]
[1745259289278,13.39759,1577.6,1577.5,43.74497]
[1745259289473,7.41359,1577.6,1577.5,2.94497]
[1745259289877,6.146,1577.6,1577.5,2.94497]
[1745259290378,6.22229596,1577.7,1577.6,1.26759]
[1745259290567,6.22229596,1577.7,1577.4,45.59549]
[1745259290568,1.26759,1577.6,1577.4,42.4261]
[1745259290770,1.7911,1577.5,1577.4,43.80259]
[1745259290976,1.26766,1577.6,1577.5,1.26767]
[1745259291177,3.05876,1577.6,1577.5,1.26767]
[1745259291378,1.26767,1577.5,1577.4,42.06768]
[1745259291675,1.26783,1577.3,1577.2,1.26786]
[1745259291878,2.88391,1577.4,1577.3,1.26783]
[1745259292071,4.67501,1577.4,1577.3,1.26783]
[1745259293085,3.4072,1577.4,1577.3,1.26783]
[1745259293473,4.67495,1577.4,1577.3,1.26783]
[1745259293982,4.67495,1577.4,1577.1,5.002]
[1745259293983,6.5766,1577.4,1577.1,5.002]
[1745259294181,4.70941,1577.3,1577.2,1.26791]
[1745259294378,1.26791,1577.2,1577.1,6.26993]
[1745259294583,3.04481,1577.2,1577.1,6.26993]
[1745259295081,2.93249,1577.3,1577.2,1.26791]
[1745259295287,4.70939,1577.3,1577.2,1.26791]
[1745259296079,10.85539,1577.3,1577.2,1.26791]
[1745259298283,1.26791,1577.2,1577.1,6.26993]
[1745259298582,3.10361,1577.2,1577.1,6.26993]
[1745259299183,1.8357,1577.2,1577.1,6.26993]
[1745259299384,2.9325,1577.3,1577.2,1.26791]
[1745259299774,4.7158,1577.3,1577.2,1.26791]
[1745259299974,1.26791,1577.2,1577.1,6.26992]
[1745259300174,3.05121,1577.2,1577.1,6.26992]
[1745259300486,3.05121,1577.2,1576.9,146.97343596]
[1745259300487,4.9531,1577.2,1576.9,146.97343596]
[1745259300781,4.57854,1577.1,1577.0,1.26807]
[1745259301178,4.57854,1577.1,1576.9,0.00951596]
[1745259301179,1.26807,1577.0,1576.9,0.00951596]
[1745259301377,6.25917,1577.0,1576.9,0.00951596]
[1745259302280,12.40517,1577.0,1576.9,0.00951596]
[1745259303181,1.26831,1576.7,1576.6,5.003]
[1745259303579,1.26831,1576.7,1576.5,1.5248]
[1745259303885,1.26831,1576.7,1576.6,1.2684]
[1745259304074,1.26834,1576.7,1576.6,1.26833]
[1745259304275,4.70271596,1576.8,1576.7,1.26831]
[1745259304582,0.00951596,1576.8,1576.7,1.26831]
[1745259305882,1.27774596,1576.8,1576.7,1.26831]
[1745259306281,0.00951596,1576.8,1576.7,1.26831]
[1745259306482,1.27774596,1576.8,1576.7,1.26831]
[1745259306889,0.00951596,1576.8,1576.7,6.26231]
[1745259307386,1.27774596,1576.8,1576.7,6.26231]
[1745259308277,1.27774596,1576.8,1576.7,4.994]
[1745259308477,0.00951596,1576.8,1576.5,6.01054596]
[1745259308681,1.2684,1576.6,1576.5,6.01054596]
[1745259308877,1.2684,1576.6,1576.5,6.01053596]
[1745259309282,1.2684,1576.6,1576.5,3.21731596]
[1745259309672,1.5336,1576.6,1576.5,4.48579596]
[1745259309889,1.26835,1576.7,1576.6,1.2684]
[1745259310185,1.2684,1576.6,1576.5,4.81591596]
[1745259310382,1.2684,1576.6,1576.5,6.49331596]
[1745259310584,1.2684,1576.6,1576.5,4.89471596]
[1745259310781,2.949,1576.6,1576.5,4.89471596]
[1745259310971,1.2684,1576.6,1576.5,6.16319596]
[1745259311584,1.54311596,1576.8,1576.7,1.26831]
[1745259311785,1.54311596,1576.8,1576.7,4.47611]
[1745259312180,1.54311596,1576.8,1576.7,6.16841]
[1745259312586,0.00951596,1576.8,1576.7,6.16841]
[1745259312781,1.27774596,1576.8,1576.7,6.16841]
[1745259313188,0.00951596,1576.8,1576.7,6.16841]
[1745259313486,1.27774596,1576.8,1576.7,6.16841]
[1745259313984,0.00951596,1576.8,1576.7,6.16841]
[1745259314397,1.27774596,1576.8,1576.7,6.16841]
[1745259314684,1.27774596,1576.8,1576.7,11.16241]
[1745259314685,0.00951596,1576.8,1576.7,11.16241]
[1745259315078,0.00951596,1576.8,1576.7,17.30841]
[1745259315481,1.27774596,1576.8,1576.7,17.30841]
[1745259315786,28.69345094,1576.8,1575.8,3.2078]
[1745259316091,1.26888,1576.0,1575.9,1.7983]
[1745259316987,3.05548,1576.0,1575.9,1.7983]
[1745259317185,3.05548,1576.0,1575.9,3.06726]
[1745259317886,3.05548,1576.0,1575.9,1.7983]
[1745259318283,1.26888,1576.0,1575.9,3.06726]
[1745259319191,1.26888,1576.0,1575.9,3.06719]
[1745259319389,6.5156,1576.1,1575.9,1.7983]
[1745259319580,7.7844,1576.1,1576.0,1.7031]
[1745259320288,4.4766,1576.1,1576.0,2.97198]
[1745259320499,4.4766,1576.1,1576.0,1.7031]
[1745259321494,4.4766,1576.1,1576.0,2.97198]
[1745259321794,7.68522,1576.3,1576.2,1.26872]
[1745259321991,3.2078,1576.3,1576.2,1.26872]
[1745259322193,3.2078,1576.3,1576.2,6.26872]
[1745259322387,1.65121596,1576.8,1576.3,3.1716]
[1745259322694,1.27778596,1576.8,1576.6,1.2684]
[1745259322891,0.00951596,1576.8,1576.7,7.99601]
[1745259323091,0.00951596,1576.8,1576.7,52.00381]
[1745259323497,16.5415116,1576.9,1576.8,1.26823]
[1745259324791,20.74481365,1577.0,1576.9,1.26815]
[1745259324997,0.00951596,1577.0,1576.9,4.47595]
[1745259325190,1.27758596,1577.0,1576.9,3.2078]
[1745259325391,1.27758596,1577.0,1576.9,5.0429]
[1745259326202,1.27758596,1577.0,1576.9,1.8351]
[1745259326703,1.26823,1576.8,1576.7,45.795]
[1745259327005,3.24241596,1577.0,1576.7,48.89841]
[1745259327206,1.26815,1576.9,1576.8,1.26823]
[1745259327401,1.26815,1576.9,1576.7,48.89835]
[1745259327697,1.26815,1576.9,1576.7,48.91335]
[1745259327901,4.51054596,1577.0,1576.8,1.26823]
[1745259328103,4.51054596,1577.0,1576.9,1.6987]
[1745259329902,1.26823,1576.8,1576.7,6.27825]
[1745259330103,1.26823,1576.8,1576.7,7.97695]
[1745259330304,1.26823,1576.8,1576.7,6.6937]
[1745259330502,1.26823,1576.8,1576.7,7.96201]
[1745259330697,1.26822,1576.9,1576.7,7.96201]
[1745259331003,1.26815,1576.9,1576.7,7.97701]
[1745259331401,1.26823,1576.8,1576.7,7.97701]
[1745259331700,1.26823,1576.8,1576.7,6.6937]
[1745259331899,1.26823,1576.8,1576.7,7.96201]
[1745259332101,1.26815,1576.9,1576.8,1.26823]
[1745259332698,1.26831,1576.7,1576.6,0.00951596]
[1745259332897,3.171,1576.6,1576.3,1.26861]
[1745259333097,1.26864,1576.3,1576.2,7.93925]
[1745259333499,1.26863,1576.4,1576.3,1.26864]
[1745259333805,1.26864,1576.3,1576.2,7.93925]
[1745259334004,1.26864,1576.3,1576.2,7.94876596]
[1745259334506,3.17123,1576.5,1576.2,7.94876596]
[1745259334708,1.26864,1576.3,1576.2,7.94876596]
[1745259335104,1.26861,1576.4,1576.2,7.94876596]
[1745259335297,2.87286,1576.6,1576.4,1.26856]
[1745259335499,1.26848,1576.5,1576.4,1.26856]
[1745259335701,2.87286,1576.6,1576.4,1.26856]
[1745259335906,1.26848,1576.5,1576.4,1.26856]
[1745259336106,1.26858,1576.4,1576.3,1.2686]
[1745259336600,1.26848,1576.5,1576.4,1.26851]
[1745259337005,1.26846,1576.6,1576.5,1.26848]
[1745259337209,1.26848,1576.5,1576.4,1.26849]
[1745259337407,4.8669,1576.7,1576.3,1.5215]
[1745259337707,1.26856,1576.4,1576.3,2.7901]
[1745259338105,1.26854,1576.5,1576.4,1.26855]
[1745259338504,1.26856,1576.4,1576.3,2.79007]
[1745259339507,1.26856,1576.4,1576.3,1.5215]
[1745259339707,1.26856,1576.4,1576.3,2.79014]
[1745259340102,2.93962,1576.5,1576.4,1.26856]
[1745259340307,1.26852,1576.5,1576.4,1.26856]
[1745259340507,1.2685,1576.5,1576.4,1.2685]
[1745259340709,1.26846,1576.6,1576.5,1.26846]
[1745259341104,1.2685,1576.5,1576.4,1.2685]
[1745259341611,7.41446,1576.6,1576.5,1.26848]
[1745259341806,6.146,1576.6,1576.5,1.26848]
[1745259342012,6.146,1576.6,1576.5,6.25448]
[1745259342313,1.2683,1576.8,1576.7,1.26831]
[1745259342911,4.54388,1576.9,1576.8,1.26823]
[1745259343611,0.00951596,1577.0,1576.9,1.26815]
[1745259344115,0.00951596,1577.0,1576.9,6.26815]
[1745259344529,12.45793543,1577.1,1577.0,1.26807]
[1745259344833,12.45793543,1577.1,1577.0,4.47587]
[1745259345725,2.98469596,1577.2,1577.1,1.26799]
[1745259345926,2.98462596,1577.2,1577.1,6.25299]
[1745259346231,1.71671596,1577.2,1577.1,6.25299]
[1745259347028,1.71671596,1577.2,1577.1,1.26799]
[1745259347630,2.98462596,1577.2,1577.1,1.26799]
[1745259347829,1.71671596,1577.2,1577.1,1.26799]
[1745259348225,2.98462596,1577.2,1577.1,1.26799]
[1745259348417,1.71671596,1577.2,1577.0,8.20231596]
[1745259348621,2.98465596,1577.2,1577.0,8.20231596]
[1745259348823,2.98468596,1577.2,1577.0,9.47035596]
[1745259349632,1.26799,1577.1,1577.0,9.47035596]
[1745259349926,1.26799,1577.1,1577.0,0.00951596]
[1745259350228,1.26815,1576.9,1576.8,3.2078]
[1745259350724,1.26831,1576.7,1576.6,4.985]
[1745259350929,1.26831,1576.7,1576.6,6.7894]
[1745259351127,7.41431,1576.7,1576.6,4.985]
[1745259351326,6.146,1576.7,1576.6,1.2684]
[1745259351833,6.146,1576.7,1576.6,4.4762]
[1745259352034,6.146,1576.7,1576.6,6.0632]
[1745259352226,1.26831,1576.7,1576.6,6.0632]
[1745259352531,1.8151,1576.9,1576.6,4.7948]
[1745259352725,3.17039,1576.9,1576.6,3.2078]
[1745259352928,1.2684,1576.6,1576.5,1.82031596]
[1745259353533,1.2684,1576.6,1576.5,3.08879596]
[1745259354825,3.0896,1576.6,1576.5,3.08879596]
[1745259355026,3.0896,1576.6,1576.5,1.82031596]
[1745259355222,9.2356,1576.6,1576.5,1.82031596]
[1745259356228,3.0896,1576.6,1576.5,3.08879596]
[1745259356733,1.4999,1576.9,1576.6,3.171]
[1745259356937,4.79631596,1577.2,1576.7,9.8997]
[1745259357127,0.00951596,1577.2,1577.1,1.26799]
[1745259357325,1.27742596,1577.2,1577.1,6.6919]
[1745259359040,3.11272596,1577.2,1577.1,4.985]
[1745259359833,1.26799,1577.1,1577.0,1.7113]
[1745259360035,1.26807,1577.0,1576.9,4.985]
[1745259360437,1.26807,1577.0,1576.7,6.2533]
[1745259360438,1.26829,1576.8,1576.7,6.2533]
[1745259360637,3.10351,1576.9,1576.8,1.26822]
[1745259360940,1.26813,1577.0,1576.9,1.26815]
[1745259361240,1.26815,1576.9,1576.8,2.93952]
[1745259361742,1.26815,1576.9,1576.8,1.6713]
[1745259362133,3.09153,1577.0,1576.9,1.26815]
[1745259362334,1.26808,1577.0,1576.9,1.26811]
[1745259362536,6.15551596,1577.2,1576.8,6.4299]
[1745259362839,5.7607998,1577.2,1577.1,1.26799]
[1745259363033,5.7607998,1577.2,1577.1,6.25299]
[1745259363232,12.53080625,1577.5,1577.4,1.26775]
[1745259363440,3.09103,1577.6,1577.5,1.26767]
[1745259363651,1.26775,1577.4,1577.3,48.72409]
[1745259363943,2.97682596,1577.5,1577.4,1.26775]
[1745259364336,2.97682596,1577.5,1577.3,47.05277]
[1745259364544,2.97682596,1577.5,1577.3,45.785]
[1745259365045,2.97682596,1577.5,1577.3,47.05278]
[1745259365349,12.53080625,1577.9,1577.8,1.26743]
[1745259365543,12.53080625,1577.9,1577.8,9.45923]
[1745259365947,12.53080625,1578.1,1578.0,1.26727]
[1745259366247,18.67680625,1578.1,1578.0,1.26727]
[1745259366941,19.94399625,1578.1,1577.9,1.2673]
[1745259367148,21.65960625,1578.1,1578.0,1.26727]
[1745259367447,1.26727,1578.0,1577.9,1.26729]
[1745259367648,1.26728,1578.0,1577.8,8.1918]
[1745259367848,7.8616,1578.1,1577.9,1.26734]
[1745259368049,9.12885,1578.1,1577.9,1.26734]
[1745259369246,9.12885,1578.1,1577.8,8.1818]
[1745259369247,7.8616,1578.1,1578.0,1.26727]
[1745259369439,1.26727,1578.0,1577.8,9.44917]
[1745259369640,2.98287,1578.0,1577.8,9.44917]
[1745259369945,1.7156,1578.0,1577.9,1.26735]
[1745259370146,7.8616,1578.0,1577.9,1.26735]
[1745259370447,9.12887,1578.0,1577.9,1.26735]
[1745259370844,12.8616,1578.0,1577.5,8.1808]
[1745259371146,12.8616,1578.0,1577.5,4.973]
[1745259371147,8.12028,1577.9,1577.5,4.973]
[1745259371442,1.26759,1577.6,1577.5,6.24066]
[1745259371649,1.26757,1577.7,1577.5,6.24066]
[1745259371852,6.16659,1577.8,1577.5,8.1808]
[1745259372048,7.4133,1578.0,1577.9,1.26735]
[1745259372346,7.4133,1578.0,1577.7,4.47531]
[1745259372347,6.146,1577.8,1577.7,4.47531]
[1745259372545,6.146,1577.8,1577.7,6.07991]
[1745259373142,1.7441,1578.1,1577.9,1.26735]
[1745259373340,1.7441,1578.1,1577.9,6.24035]
[1745259373542,3.01136,1578.1,1578.0,1.26727]
[1745259373944,1.7441,1578.1,1578.0,1.26727]
[1745259374147,2.95047596,1578.2,1577.9,4.973]
[1745259374347,2.95047596,1578.2,1578.0,1.26727]
[1745259374547,1.68331596,1578.2,1578.1,1.26719]
[1745259374737,1.68331596,1578.2,1577.6,1.5528]
[1745259374738,9.98251596,1578.2,1577.2,6.37743]
[1745259374938,1.2676,1577.6,1577.5,1.26765]
[1745259375149,6.146,1577.6,1577.5,1.26765]
[1745259376244,1.5291,1577.8,1577.4,6.38669596]
[1745259376551,1.5291,1577.8,1577.6,1.26756]
[1745259376750,3.3358,1577.8,1577.6,1.26756]
[1745259376951,3.3358,1577.8,1577.4,6.38669596]
[1745259376952,3.3358,1577.8,1577.7,1.26751]
[1745259377151,9.4818,1577.8,1577.7,1.26751]
[1745259377339,10.74923,1577.8,1577.6,6.24053]
[1745259377543,10.74923,1577.8,1577.7,1.26751]
[1745259377544,7.6751,1577.8,1577.7,1.26751]
[1745259377743,7.6751,1577.8,1577.6,4.973]
[1745259377940,7.6751,1577.8,1577.7,1.26751]
[1745259378346,8.9426,1577.8,1577.6,7.76185]
[1745259378546,6.146,1577.8,1577.7,4.47531]
[1745259378852,6.146,1577.8,1577.7,5.99041]
[1745259379252,1.8067,1578.1,1577.8,1.2674]
[1745259379552,1.26734,1578.0,1577.8,1.2674]
[1745259379952,1.26734,1578.0,1577.9,1.26735]
[1745259380141,7.41334,1578.0,1577.9,1.26735]
[1745259380454,1.26739,1577.9,1577.7,4.7229]
[1745259380644,1.26739,1577.9,1577.8,3.02283]
[1745259381254,7.41339,1577.9,1577.8,3.02283]
[1745259382254,1.26748,1577.8,1577.7,1.26751]
[1745259382555,2.96278,1577.8,1577.7,2.94611]
[1745259383355,7.8413,1577.8,1577.7,2.94611]
[1745259383856,9.10873,1577.8,1577.7,2.94611]
[1745259384949,7.8413,1577.8,1577.7,2.94611]
[1745259385150,9.10873,1577.8,1577.7,2.94611]
[1745259385351,6.146,1577.8,1577.7,6.15391]
[1745259386053,0.00951596,1578.2,1577.7,9.8864]
[1745259386253,0.00951596,1578.2,1578.1,1.26719]
[1745259386559,0.00951596,1578.2,1578.1,9.47459]
[1745259387950,0.00951596,1578.2,1578.1,14.47459]
[1745259388557,5.96e-06,1578.2,1578.1,14.47459]
[1745259389454,5.96e-06,1578.2,1578.1,55.27459]
[1745259390155,5.96e-06,1578.2,1578.1,50.27459]
[1745259390559,5.96e-06,1578.2,1578.1,49.0064]
[1745259390753,1.26711596,1578.2,1578.1,6.6795]
[1745259390949,1.26711596,1578.2,1578.1,4.972]
[1745259391255,1.26719,1578.1,1578.0,3.2078]
[1745259391460,2.97219,1578.1,1578.0,3.2078]
[1745259391862,1.26727,1578.0,1577.9,4.972]
[1745259392056,1.26743,1577.8,1577.7,7.90824]
[1745259392261,1.26743,1577.8,1577.7,48.70824]
[1745259392559,1.26743,1577.8,1577.7,6.6408]
[1745259392767,1.26741,1577.9,1577.7,7.90831]
[1745259392960,2.97241,1577.9,1577.7,7.90831]
[1745259393168,6.146,1577.9,1577.8,4.47523]
[1745259393362,6.146,1577.9,1577.8,9.47523]
[1745259393561,5.48213462,1577.9,1577.8,10.97353]
[1745259394260,5.96e-06,1578.2,1578.1,1.26719]
[1745259394462,5.96e-06,1578.2,1578.1,6.23919]
[1745259394661,1.26711596,1578.2,1578.1,4.972]
[1745259394862,1.26719,1578.1,1578.0,4.9133]
[1745259395064,3.03129,1578.1,1578.0,9.8853]
[1745259395265,9.17729,1578.1,1578.0,9.8853]
[1745259395860,12.9101,1578.1,1577.6,4.7543]
[1745259396062,1.26735,1577.9,1577.8,4.972]
[1745259396266,1.26751,1577.7,1577.6,8.1798]
[1745259396874,3.03161,1577.7,1577.6,9.44739]
[1745259397177,7.9101,1577.7,1577.6,9.44739]
[1745259397379,9.17761,1577.7,1577.6,9.9996]
[1745259398169,7.9101,1577.7,1577.6,11.26719]
[1745259399573,9.17761,1577.7,1577.6,9.9996]
[1745259399962,6.146,1577.7,1577.6,11.26719]
[1745259400162,7.41351,1577.7,1577.6,8.05939]
[1745259400364,9.15751,1577.7,1577.6,8.05939]
[1745259401773,7.89,1577.7,1577.6,6.23959]
[1745259401973,7.89,1577.7,1577.6,7.92769]
[1745259402175,6.146,1577.7,1577.6,7.92769]
[1745259402576,6.146,1577.7,1577.6,11.01889]
[1745259403275,3.2361,1578.0,1577.9,1.26735]
[1745259403475,3.2361,1578.0,1577.9,6.23135]
[1745259403675,1.26716596,1578.2,1577.9,4.964]
[1745259403876,2.93646596,1578.2,1578.0,3.0243]
[1745259404077,9.08246596,1578.2,1578.1,3.02429]
[1745259404272,9.08246596,1578.2,1578.1,1.7571]
[1745259404669,1.26727,1578.0,1577.9,6.7211]
[1745259405069,2.93656,1578.1,1577.9,6.7211]
[1745259405275,2.93656,1578.1,1577.9,7.98838]
[1745259405575,2.93657,1578.0,1577.9,4.964]
[1745259405774,1.26743,1577.8,1577.7,4.964]
[1745259406277,7.41343,1577.8,1577.7,4.964]
[1745259406473,9.23673,1577.8,1577.7,4.964]
[1745259406871,1.26759,1577.6,1577.5,107.89613]
[1745259407070,1.26759,1577.6,1577.5,106.6285]
[1745259407266,1.26759,1577.6,1577.5,4.964]
[1745259407471,4.57729,1577.6,1577.5,6.23167]
[1745259408078,10.72329,1577.6,1577.5,6.23167]
[1745259408375,9.4557,1577.6,1577.5,6.23167]
[1745259408577,10.72329,1577.6,1577.5,6.23167]
[1745259408785,9.4557,1577.6,1577.5,6.23167]
[1745259408972,6.146,1577.6,1577.5,6.23167]
[1745259409168,6.146,1577.6,1577.5,9.43947]
[1745259409374,6.146,1577.6,1577.5,14.43947]
[1745259409668,6.146,1577.6,1577.5,16.19617]
[1745259410276,1.26746,1577.8,1577.7,1.26751]
[1745259410884,1.755,1577.9,1577.8,1.26743]
[1745259411073,3.0224,1577.9,1577.7,3.02414]
[1745259411267,3.0224,1577.9,1577.8,1.7567]
[1745259412173,7.901,1577.9,1577.8,3.02413]
[1745259412480,6.146,1577.9,1577.8,11.19693]
[1745259413271,6.23001,1578.1,1578.0,1.26727]
[1745259413471,3.02221,1578.1,1577.9,1.8007]
[1745259413681,3.02221,1578.1,1578.0,1.26727]
[1745259413976,1.26727,1578.0,1577.9,3.06801]
[1745259414380,7.901,1578.1,1578.0,1.26727]
[1745259414579,7.901,1578.1,1578.0,3.06797]
[1745259415679,6.146,1578.1,1578.0,3.06797]
[1745259416778,6.146,1578.1,1578.0,11.27577]
[1745259416978,6.146,1578.1,1578.0,12.88657]
[1745259417173,5.96e-06,1578.2,1578.1,1.26719]
[1745259417379,5.96e-06,1578.2,1578.1,7.94399]
[1745259417776,5.96e-06,1578.2,1578.1,12.94399]
[1745259418589,5.96e-06,1578.2,1578.1,7.94399]
[1745259418979,5.0377,1578.6,1578.5,1.26687]
[1745259419180,12.53080625,1578.7,1578.6,1.27605028]
[1745259419484,12.53080625,1578.7,1578.6,4.48385028]
[1745259419786,12.52154597,1578.7,1578.6,9.70908897]
[1745259420171,12.52154597,1578.7,1578.6,4.44349]
[1745259421780,12.52154597,1578.7,1578.6,45.24349]
[1745259423282,6.146,1578.7,1578.6,45.24349]
[1745259425990,6.146,1578.7,1578.6,50.24349]
[1745259426285,0.00951596,1578.8,1578.7,1.26671]
[1745259426489,0.00951596,1578.8,1578.7,6.14391]
[1745259426681,1.77071596,1578.8,1578.7,6.14391]
[1745259427286,7.91671596,1578.8,1578.7,6.14391]
[1745259428387,9.18334596,1578.8,1578.7,4.47451]
[1745259428777,9.18334596,1578.8,1578.5,1.27634596]
[1745259428778,1.26677,1578.7,1578.5,1.27634596]
[1745259428981,1.26679,1578.6,1578.5,1.27634596]
[1745259429182,6.146,1578.6,1578.5,1.27634596]
[1745259429379,9.15569,1578.6,1578.5,0.00951596]
[1745259429584,12.36349,1578.6,1578.5,0.00951596]
[1745259430287,16.0967,1578.6,1578.2,3.2078]
[1745259430488,1.26702,1578.4,1578.2,6.22209]
[1745259430697,1.7429,1578.3,1578.2,6.22209]
[1745259431392,7.8889,1578.3,1578.2,8.05589]
[1745259431693,6.146,1578.3,1578.2,8.05589]